Workbook

Sheet Utrymningsmodellen
E1: Fältförklaring
E2: Indata:
B4: Variabler | C4: Beteckning | D4: Väntevärde | E4: Fördelning | F4: Enhet | G4: Förklaring | H4: Kommentar
B5: Förutsättningar
B6: Djup på hisshallen | C6: Z | D6: =100 -> 100 | E6: 100 | F6: m | G6: Höjdskillnaden mellan hisshallen och marknivå
B7: Antal personer i hisshall | C7: Perstot | D7: =2400 -> 2400 | E7: 2400 | F7: pers | G7: Dimensionerande personantal för utrymning
B8: Andel rörelsehindrade i hisshall | C8: prörelsehinder | D8: 0.095 | E8: =_xll.RiskUniform(0.08,0.11) ->  | G8: Andelen rörelsehindrade som förväntas vistas i hisshallen. Med rörelsehindrad menas personer som inte kan eller har mycket svårt att gå i trappor | H8: Om undermarksanläggningen till exempel ligger nära ett sjukhus behöver andelen rörelsehindrade ökas
B10: Hissutrymning
B11: Antal hissar | C11: nH | D11: 8 | E11: 8 | F11: hissar | G11: Antal tillgängliga utrymningshissar
B12: Hisskapacitet | C12: KapH | D12: 32 | E12: 32 | F12: pers
B13: Hisshastighet | C13: vH | D13: 4 | E13: 4 | F13: m/s | G13: Hissens vertikala medelhastighet vid en utrymning
B14: Nyttjandegrad av hiss | C14: ηH | D14: 0.8 | E14: =_xll.RiskTriang(0.7,0.8,0.9) ->  | G14: Andelen av hisskapaciteten som nyttjas vid en utrymning. Beror till exempel på antal rullstolar samt hur mycket plats folk tar upp. | H14: Om undermarksanläggningen till exempel ligger nära en flygplats förväntas en högre andel ha med sig baggage och då bör nyttjandegraden sänkas
B15: Andel som först kan tänka sig välja hiss | C15: pväljer | D15: 0.925 | E15: =_xll.RiskUniform(0.89,0.96) ->  | G15: Andel personer som inledningsvis kan tänka sig använda hiss som utrymningsväg
B16: Andel som byter till trappa pga social påverkan | C16: pbyter | D16: 0.1 | E16: =_xll.RiskUniform(0.05,0.15) ->  | G16: Andelen personer som förväntas byta från hiss till trappa på grund av social påverkan, trängsel och väntetid.
B17: Hissdörr öppningstid | C17: tHdö | D17: =1.2 -> 1.2 | E17: =1.2 -> 1.2 | F17: s | G17: Tiden det tar för hissdörrarna att öppnas.
B18: Hissdörr stängningstid | C18: tHds | D18: 3 | E18: =3 -> 3 | F18: s | G18: Tiden det tar för hissdörrarna att stängas.
B19: Förväntat antal personer i hiss | C19: PersH | D19: =D12*D14 -> 25.6 | E19: =_xll.RiskOutput("PersH")+E12*E14 ->  | F19: pers | G19: Beroende av hisskapaciteten samt nyttjandegraden
B20: Tid för hissfyllning per person | C20: tfyll | D20: 1.13 | E20: =_xll.RiskOutput("t_fyll")+_xll.RiskTriang(0.9,1,1.5) ->  | F20: s/person | G20: Tiden det tar att fylla en hiss beroende på det förväntade antalet personer per hiss
B21: Tid för hisstömning per person | C21: ttöm | D21: 0.91 | E21: =_xll.RiskOutput("t_töm")+_xll.RiskTriang(0.72,0.8,1.2) ->  | F21: s/person | G21: Tiden det tar att tömma en hiss beroende på det förväntade antalet personer per hiss
B22: Restid för hiss | C22: tH | D22: =(D17+D18)*2+(D6/D13)*2+D20*D19+D21*D19 -> 110.624 | E22: =_xll.RiskOutput("t_H")+((E17+E18)*2+(E6/E13)*2+E20*E19+E21*E19) ->  | F22: s | G22: Tiden det tar för en hiss att fyllas, åka från ena stannplanet till det andra, tömmas, och sedan åka tillbaka
B23: Andel som kan tänka sig ta hiss | C23: pH | D23: =IF(D30=0,1-D8*(1-D15),D15*(1-D16)*(1-D8)+D15*D8) -> 0.8412875 | E23: =_xll.RiskOutput("p_H")+IF(E30=0,1-E8*(1-E15),E15*(1-E16)*(1-E8)+E15*E8) ->  | G23: Andelen som tar hiss är summan av de som tar hiss och inte byter på grund av social påverkan
B24: Flöde från hissar | C24: QH | D24: =D11*D19/D22 -> 1.85131617 | E24: =_xll.RiskOutput("Q_H")+E11*E19/E22 ->  | F24: pers/s | G24: Det totala uppskattade personflödet via hiss
B25: Maximalt accepterad kötid | C25: thisskö | D25: 30 | E25: 30 | F25: min | G25: Maximalt accepterad kötid till hissarna på 30 minuter
B26: Antal personer som kan ta hissen inom den maximalt accepterade kötiden | C26: Pershisskö | D26: =MIN(D7*D23,D24*D25*60) -> 2019.09 | E26: =MIN(E7*E23,E24*E25*60) ->  | F26: pers | G26: Antal personer som hinner åka hissen innan tiden överstiger den maximalt accepterade kötiden
B27: Antal personer som byter från hiss till trappa på grund av lång kötid | C27: Persbyter | D27: =IF(D7*D23-D24*D25*60<0,0,D7*D23-D24*D25*60) -> 0 | E27: =IF(E7*E23-E24*E25*60<0,0,E7*E23-E24*E25*60) ->  | F27: pers | G27: Antal personer som byter till trappa på grund av att tiden överstiger den maximalt accepterade kötiden
B29: Trapputrymning
B30: Antal trappor | C30: nT | D30: 2 | E30: 2 | F30: trappor | G30: Antalet utrymningstrappor från hisshallen till markplan
B31: Trappbredd | C31: breddT | D31: =2 -> 2 | E31: 2 | F31: m | G31: Total bredd i varje trappa | H31: Om trappbredden är mindre än 2 meter kan det vara svårt att gå förbi framförvarande långsammare individer.
B32: Antal trapphus | C32: ntrapphus | D32: =ROUND(D30/2,0) -> 1 | E32: =ROUND(E30/2,0) -> 1 | F32: trapphus | G32: I varje trapphus förutsätts två trappor gå omlott
B33: Andel som väljer trappa | C33: pT | D33: =1-D23-D43 -> 0.1515875 | E33: =_xll.RiskOutput("p_T")+(1-E23-E43) ->  | G33: Andelen som väljer trappan är de personer som ej väljer hissen eller utrymningsplats
B34: Persontäthet i trappa | C34: D | D34: =1.75 -> 1.75 | E34: =_xll.RiskUniform(1.5,2) ->  | F34: pers/m2 | G34: Den uppskattade persontätheten längre upp i trappan | H34: Om en persontäthet över 3 pers/kvm förväntas i trappan uppstår köbildning sannolikt in till trappan. Beräkna då personflödet baserat på den maximala förväntade persontätheten in till trappan
B35: Gånghastighet i trappa | C35: vgång | D35: 0.45 | E35: =IF(E34<2.2,_xll.RiskUniform(0.4,0.5),0.75-0.144*(E34-0.5)) ->  | F35: m/s | G35: Gånghastigheten i trappan för de långsammaste individerna som förväntas nå marknivå | H35: Om persontätheten överstiger 2,2 pers/m2 antas gånghastigheten i trappan avta linjärt enligt gånghastighet-persontäthet samband.
B36: Specifikt flöde pga persontäthet | C36: QS | D36: =D34*D35 -> 0.7875 | E36: =_xll.RiskOutput("Q_S")+E34*E35 ->  | F36: pers/(ms) | G36: Det specifika personflödet anger personflödet per meter effektiv trappbredd och sekund
B37: Flöde i trapphus | C37: QT | D37: =D36*(D31-2*0.15)*D30 -> 2.6775 | E37: =_xll.RiskOutput("Q_T")+E36*(E31-2*0.15)*E30 ->  | F37: pers/s | G37: Det totala personflödet i trapporna per sekund. Uppskattas med det specifika personflödet och den effektiva trappbredden som beräknas genom att ta bort gränsskiktet vid trappväggarna som ej nyttjas (oftast 150 mm)
B38: Kötid för trappa | C38: tTrappkö | D38: =IFERROR((D7*D33+D27)/D37,0) -> 135.8767507 | E38: =_xll.RiskOutput("t_Trappkö")+IFERROR((E7*E33+E27)/E37,0) ->  | F38: s | G38: Tiden som personen längst bak i kön i trappan behöver vänta
B39: Stighastighet i trappa | C39: vstig | D39: =D35*0.35 -> 0.1575 | E39: =_xll.RiskUniform(0.3*E35,0.4*E35) ->  | F39: m/s | G39: Stighastigheten i trappan för de långsammaste individerna
B40: Total tid att gå upp från hisshall till markplan | C40: tT | D40: =IF(D30=0,0,D6/D39) -> 634.9206349 | E40: =_xll.RiskOutput("t_T")+IF(E30=0,0,E6/E39) ->  | F40: s | G40: Djupet på anläggningen samt stighastigheten i trappan avgör tiden för att bestiga trapporna från hisshallen till marknivå
B42: Invänta räddningstjänst
B43: Andel personer som nyttjar utrymningsplats | C43: pUP | D43: =IF(D11=0,D8,(1-D15)*D8) -> 0.007125 | E43: =_xll.RiskOutput("p_UP")+IF(E11=0,E8,(1-E15)*E8) ->  | G43: Andelen personer som ej kan gå i trappor och som inte heller är villiga att använda hiss som utrymningsväg | H43: Rörelsehindrade antas vara mer villiga att nyttja hiss än andra, således förutsätts deras val av utrymningsväg inte ändras på grund av social påverkan
B44: Andel i trappan som väljer utrymningsvåning | C44: pUV | D44: =IF(D6<40,0,0.125) -> 0.125 | E44: =IF(E6<40,0,_xll.RiskUniform(0.1,0.15)) ->  | G44: Personer som ej klarar att utrymma hela vägen till det fria via trapporna. | H44: Enligt källor klarar de flesta, unga och friska, att gå 100 höjdmeter. Vid mindre än 40 meters djup antas alla klara trappbestigning.
B46: Kostnader
B47: Kostnad per hiss | C47: KH | D47: =1.8*10^3*4 -> 7200 | E47: =_xll.RiskUniform(1.8*10^3*3,1.8*10^3*5) ->  | F47: tkr | G47: Kostnaden för en vanlig hiss uppskattas till cirka 1,5-1,8 mkr. Förutsätter att en utrymningshiss är 3-5 ggr så dyr
B48: Kostnad per trappa | C48: KT | D48: =25*D6/3 -> 833.3333333 | E48: =_xll.RiskUniform(20,30)*E6/3 ->  | F48: tkr | G48: Kostnaden för en trappa uppskattas till cirka 25 tkr per våning. En våning uppskattas vara cirka 3 meter hög.
B49: Kostnad per UV | C49: KUV | D49: =40 -> 40 | E49: =_xll.RiskUniform(35,45) ->  | F49: tkr/trappa | G49: Kostnaden för en utrymningsvåning förutsätts vara kostnaden för två brandklassade dörrar i klass EI60-S200 och övriga installationer. Dessa uppskattas uppgå till cirka 40 tkr per trappa och utrymningsvåning. | H49: Antar en utrymningsvåning per 11:e meter som för vanliga räddningshissar
B50: Schaktkostnad per kbm | C50: Kschakt | D50: =11.4 -> 11.4 | E50: =_xll.RiskUniform(10,12.8) ->  | F50: tkr/kbm | G50: Kostnaden uppskattas till cirka 10-12,8 tkr/kbm enligt entreprenadkostnad för station Sofia
B51: Area på hisschaktet | C51: AHisschakt | D51: 15 | E51: 15 | F51: kvm
B52: Area på trappschakt | C52: ATrappschakt | D52: 42 | E52: 42 | F52: kvm
B54: Utvariabler | C54: Beteckning | D54: Väntevärde | E54: Fördelning | F54: Enhet | G54: Kommentar
B55: Utrymning
B56: Total utrymningstid, hiss | C56: tHutr | D56: =IF(D30=0,SUM(D26:D27)/(D24*60),(D26)/(D24*60)) -> 18.17706805 | E56: =_xll.RiskOutput("t_Hutr")+IF(E30=0,SUM(E26:E27)/(E24*60),(E26)/(E24*60)) ->  | F56: min | G56: Totala antalet personer som nyttjar hissarna delat med personflödet via hissarna
B57: Total utrymningstid, trappa | C57: tTutr | D57: =(D38+D40)/60 -> 12.84662309 | E57: =_xll.RiskOutput("t_Tutr")+(E38+E40)/60 ->  | F57: min | G57: Tiden till att sista person når det fria/utrymningsvåning. I beräkningarna förenklas det att någon av de sista personerna utrymmer hela vägen upp (och viker alltså inte av till en utrymningsvåning). Gånghastigheten från de långsammaste (som troligtvis nyttjar utrymningsvåningen) avgör hastigheten i trappan. Gånghastigheten höjs inte efter utrymningsvåningen vilket medför ett något mer konservativt resultat.
B58: Total utrymningstid | C58: tutr | D58: =IFERROR(MAX(D56:D57),D57) -> 18.17706805 | E58: =_xll.RiskOutput("t_utr")+IFERROR(MAX(E56:E57),E57) ->  | F58: min | G58: Det största värdet på utrymningstid från hiss eller trappa
B59: Antal personer i utrymningsplatser | C59: PersUP | D59: =D43*D7 -> 17.1 | E59: =_xll.RiskOutput("Pers_UP")+E43*E7 ->  | F59: pers
B60: Antal personer i utrymningsvåningar | C60: PersUV | D60: =IF(D30=0,0,(D7*D33+D27)*D44) -> 45.47625 | E60: =_xll.RiskOutput("Pers_UV")+IF(E30=0,0,(E7*E33+E27)*E44) ->  | F60: pers
B61: Antal personer som inväntar räddningstjänst | C61: PersRTJ | D61: =SUM(D59:D60) -> 62.57625 | E61: =_xll.RiskOutput("Pers_RTJ")+SUM(E59:E60) ->  | F61: pers | G61: Befinner sig på utrymningsplats i höjd med hisshall eller längre upp vid utrymningsvåning.
B63: Kostnad
B64: Total kostnad för hissar | C64: KHtot | D64: =D11*(D47+D51*D50*D6)/1000 -> 194.4 | E64: =_xll.RiskOutput("K_Htot")+E11*(E47+E51*E50*E6)/1000 ->  | F64: mkr | G64: Beroende på antal hissar samt storleken på hisschakten
B65: Total kostnad för trappor | C65: KTtot | D65: =(D30*D48+D32*D50*D52*D6)/1000 -> 49.54666667 | E65: =_xll.RiskOutput("K_Ttot")+(E30*E48+E32*E50*E52*E6)/1000 ->  | F65: mkr | G65: Beroende på antal trappor samt antal trapphus och storleken på trappschaktet
B66: Total kostnad för utrymningsvåningar | C66: KUVtot | D66: =D49*D30*ROUND(E6/11,0)/1000 -> 0.72 | E66: =E49*E30*ROUND(E6/11,0)/1000 ->  | F66: mkr | G66: Behöver ej schaktas ut separat utan ingår i trapp/hisschakt i stil med station Sofia. Kostnaden utgörs av 2 brandklassade dörrar med dörrstängare per trappa. Antalet utrymningsvåningar uppskattas genom att dividera djupet med höjden per 11:e våning (med en våningshöjd på 3 meter ger detta en utrymningsvåning var 33:e meter)
B67: Total kostnad | C67: Ktot | D67: =SUM(D64:D66) -> 244.6666667 | E67: =_xll.RiskOutput("K_tot")+SUM(E64:E66) ->  | F67: mkr | G67: Summan av kostnader på hissar, trappor, utrymningsplatser och utrymningsvåningar

Sheet Fall 1 - Alla tar hiss
E1: Fältförklaring
E2: Indata:
B4: Variabler | C4: Beteckning | D4: Väntevärde | E4: Fördelning | F4: Enhet | G4: Förklaring | H4: Kommentar
B5: Förutsättningar
B6: Djup på hisshallen | C6: Z | D6: =100 -> 100 | E6: 100 | F6: m | G6: Höjdskillnaden mellan hisshallen och marknivå
B7: Antal personer i hisshallen | C7: Perstot | D7: =2400 -> 2400 | E7: 2400 | F7: personer | G7: Dimensionerande personantal för utrymning
B8: Andel rörelsehindrade i hisshallen | C8: prörelsehinder | D8: 0.095 | E8: =_xll.RiskUniform(0.08,0.11) ->  | G8: Andelen rörelsehindrade som förväntas vistas i hisshallen. Med rörelsehindrad menas personer som inte kan eller har mycket svårt att gå i trappor | H8: Om undermarksanläggningen till exempel ligger nära ett sjukhus behöver andelen rörelsehindrade ökas
B10: Hissutrymning
B11: Antal hissar | C11: nH | D11: 8 | E11: 8 | F11: hissar | G11: Antal tillgängliga utrymningshissar
B12: Hisskapacitet | C12: KapH | D12: 32 | E12: 32 | F12: personer | G12: Hissarnas maximala personkapacitet
B13: Hisshastighet | C13: vH | D13: 4 | E13: 4 | F13: m/s | G13: Hissens vertikala medelhastighet vid en utrymning
B14: Nyttjandegrad av hissar | C14: ηH | D14: 0.8 | E14: =_xll.RiskTriang(0.7,0.8,0.9) ->  | G14: Andelen av hisskapaciteten som nyttjas vid en utrymning. Beror till exempel på antal rullstolar samt hur mycket plats folk tar upp. | H14: Om undermarksanläggningen till exempel ligger nära en flygplats förväntas en högre andel ha med sig baggage och då bör nyttjandegraden sänkas
B15: Hissdörr öppningstid | C15: tHdö | D15: =1.2 -> 1.2 | E15: =1.2 -> 1.2 | F15: s | G15: Tiden det tar för hissdörrarna att öppnas.
B16: Hissdörr stängningstid | C16: tHds | D16: 3 | E16: 3 | F16: s | G16: Tiden det tar för hissdörrarna att stängas.
B17: Förväntat antal personer i hiss | C17: PersH | D17: =D12*D14 -> 25.6 | E17: =_xll.RiskOutput("Pers_H")+E12*E14 ->  | F17: personer | G17: Beroende på hisskapaciteten samt nyttjandegraden
B18: Tid för hissfyllning per person | C18: tfyll | D18: =1.13 -> 1.13 | E18: =_xll.RiskOutput("t_fyll")+_xll.RiskTriang(0.9,1,1.5) ->  | F18: s/person | G18: Tiden det tar att fylla en hiss beroende på det förväntade antalet personer per hiss
B19: Tid för hisstömning per person | C19: ttöm | D19: =0.91 -> 0.91 | E19: =_xll.RiskOutput("t_töm")+_xll.RiskTriang(0.72,0.8,1.2) ->  | F19: s/person | G19: Tiden det tar att tömma en hiss beroende på det förväntade antalet personer per hiss
B20: Restid för hiss | C20: tH | D20: =((D15+D16)*2+(D6/D13)*2+D18*D17+D19*D17) -> 110.624 | E20: =_xll.RiskOutput("t_H")+((E15+E16)*2+(E6/E13)*2+E18*E17+E19*E17) ->  | F20: s | G20: Tiden det tar för en hiss att fyllas, åka från ena stannplanet till det andra, tömmas, och sedan åka tillbaka
B21: Andel som tänka sig ta hiss | C21: pH | D21: 1 | E21: 1 | G21: Andelen som tar hiss är summan av de som tar hiss och inte byter på grund av social påverkan
B22: Flöde från hissar | C22: QH | D22: =D11*D17/D20 -> 1.85131617 | E22: =_xll.RiskOutput("Q_H")+E11*E17/E20 ->  | F22: pers/s | G22: Det totala uppskattade personflödet via hiss
B24: Kostnader
B25: Kostnad per hiss | C25: KH | D25: =1.8*10^3*4 -> 7200 | E25: =_xll.RiskUniform(1.8*10^3*3,1.8*10^3*5) ->  | F25: tkr | G25: Kostnaden för en vanlig hiss uppskattas till cirka 1,5-1,8 mkr. Förutsätter att en utrymningshiss är 3-5 ggr så dyr
B26: Schaktkostnad per kbm | C26: Kschakt | D26: =11.4 -> 11.4 | E26: =_xll.RiskUniform(10,12.8) ->  | F26: tkr/kbm | G26: Kostnaden uppskattas till cirka 10-12,8 tkr/kbm enligt entreprenadkostnad för station Sofia
B27: Arean på hisschaktet | C27: AHisschakt | D27: 15 | E27: 15 | F27: kvm
B29: Utvariabler | C29: Beteckning | D29: Storlek | E29: Storlek | F29: Enhet | G29: Kommentar
B30: Utrymningsvariabler
B31: Total utrymningstid, hiss | C31: tHutr | D31: =(D7*D21)/(D22*60) -> 21.60625 | E31: =_xll.RiskOutput("t_Hutr")+(E7*E21)/(E22*60) ->  | F31: min | G31: Totala antalet personer som nyttjar hissarna delat med personflödet via hissarna
B32: Total utrymningstid | C32: tutr | D32: =D31 -> 21.60625 | E32: =_xll.RiskOutput("t_utr")+E31 ->  | F32: min | G32: Det största värdet på utrymningstid från hiss eller trappa
B34: Kostnadsvariabler
B35: Total kostnad för hissar | C35: KHtot | D35: =D11*(D25+D27*D26*D6)/1000 -> 194.4 | E35: =_xll.RiskOutput("K_Htot")+E11*(E25+E27*E26*E6)/1000 ->  | F35: mkr | G35: Beroende på antal hissar samt storleken på hisschakten
B36: Total kostnad | C36: Ktot | D36: =SUM(D35:D35) -> 194.4 | E36: =_xll.RiskOutput("K_tot")+SUM(E35:E35) ->  | F36: mkr | G36: Summan av kostnader på hissar, trappor, utrymningsplatser och utrymningsvåningar

Sheet Fall 2 - Alla tar trappa
E1: Fältförklaring
E2: Indata:
B4: Variabler | C4: Beteckning | D4: Väntevärde | E4: Fördelning | F4: Enhet | G4: Förklaring | H4: Kommentar
B5: Förutsättningar
B6: Djup på hisshallen | C6: Z | D6: =100 -> 100 | E6: 100 | F6: m | G6: Höjdskillnaden mellan hisshallen och marknivå
B7: Antal personer i hisshallen | C7: Perstot | D7: =2400 -> 2400 | E7: 2400 | F7: personer | G7: Dimensionerande personantal för utrymning
B8: Andel rörelsehindrade i hisshallen | C8: prörelsehinder | D8: 0.095 | E8: =_xll.RiskUniform(0.08,0.11) ->  | G8: Andelen rörelsehindrade som förväntas vistas i hisshallen. Med rörelsehindrad menas personer som inte kan eller har mycket svårt att gå i trappor | H8: Om undermarksanläggningen till exempel ligger nära ett sjukhus behöver andelen rörelsehindrade ökas
B10: Trapputrymning
B11: Antal trappor | C11: nT | D11: 2 | E11: 2 | F11: trappor | G11: Antalet utrymningstrappor från hisshallen till markplan
B12: Trappbredd | C12: breddT | D12: =2 -> 2 | E12: 2 | F12: m | G12: Total bredd i varje trappa
B13: Antal trapphus | C13: ntrapphus | D13: =ROUND(D11/2,0) -> 1 | E13: =ROUND(E11/2,0) -> 1 | F13: trapphus | G13: I varje trapphus förutsätts två trappor gå omlott
B14: Andel som väljer trappa | C14: pT | D14: =(1-D8) -> 0.905 | E14: =_xll.RiskOutput("p_T")+(1-E8) ->  | G14: Andelen som väljer trappan är de personer som ej väljer hissen eller utrymningsplats
B15: Persontäthet i trappa | C15: D | D15: =1.75 -> 1.75 | E15: =_xll.RiskUniform(1.5,2) ->  | F15: pers/m2 | G15: Den uppskattade persontätheten längre upp i trappan | H15: Om en persontäthet över 3 pers/kvm förväntas i trappan uppstår köbildning sannolikt in till trappan. Beräkna då personflödet baserat på den maximala förväntade persontätheten in till trappan
B16: Gånghastighet i trappa | C16: vgång | D16: 0.45 | E16: =IF(E15<2.2,_xll.RiskUniform(0.4,0.5),0.75-0.144*(E15-0.5)) ->  | F16: m/s | G16: Gånghastigheten i trappan för de långsammaste individerna som förväntas nå marknivå
B17: Specifikt flöde pga persontäthet | C17: QS | D17: =D15*D16 -> 0.7875 | E17: =_xll.RiskOutput("Q_S")+E15*E16 ->  | F17: pers/(ms) | G17: Det specifika personflödet anger personflödet per meter effektiv trappbredd och sekund
B18: Flöde i trapphus | C18: QT | D18: =D17*(D12-2*0.15)*D11 -> 2.6775 | E18: =_xll.RiskOutput("Q_T")+E17*(E12-2*0.15)*E11 ->  | F18: pers/s | G18: Det totala personflödet i trapporna per sekund. Uppskattas med det specifika personflödet och den effektiva trappbredden som beräknas genom att ta bort gränsskiktet vid trappväggarna som ej nyttjas (oftast 150 mm)
B19: Kötid för trappa | C19: tTrappkö | D19: =(D7*D14)/D18 -> 811.2044818 | E19: =_xll.RiskOutput("t_Trappkö")+(E7*E14)/E18 ->  | F19: s | G19: Tiden som personen längst bak i kön i trappan behöver vänta
B20: Stighastighet i trappan | C20: vstig | D20: =D16*0.35 -> 0.1575 | E20: =E16*_xll.RiskUniform(0.3,0.4) ->  | F20: m/s | G20: Stighastigheten i trappan för de långsammaste individerna
B21: Total tid att gå upp från hisshall till markplan | C21: tT | D21: =D6/D20 -> 634.9206349 | E21: =E6/E20 ->  | F21: sekunder | G21: Djupet på anläggningen samt stighastigheten i trappan avgör tiden för att bestiga trapporna från hisshallen till marknivå
B23: Invänta räddningstjänst
B24: Andel personer som nyttjar utrymningsplats | C24: pUP | D24: =D8 -> 0.095 | E24: =_xll.RiskOutput("p_UP")+E8 ->  | G24: Andelen personer som ej kan gå i trappor och som inte heller är villiga att använda hiss som utrymningsväg | H24: Rörelsehindrade antas vara mer villiga att nyttja hiss än andra, således förutsätts deras val av utrymningsväg inte ändras på grund av social påverkan
B25: Andel i trappan som väljer utrymningsvåning | C25: pUV | D25: =IF(D6<40,0,0.175) -> 0.175 | E25: =IF(E6<40,0,_xll.RiskUniform(0.15,0.2)) ->  | G25: Personer som ej klarar att utrymma hela vägen till det fria via trapporna. | H25: Enligt källor klarar de flesta, unga och friska, att gå 100 höjdmeter. Vid mindre än 40 meters djup antas alla klara trappbestigning.
B27: Kostnader
B28: Kostnad för trappa | C28: KT | D28: =25*D6/3 -> 833.3333333 | E28: =_xll.RiskUniform(20,30)*E6/3 ->  | F28: tkr | G28: Kostnaden för en trappa uppskattas till cirka 25 tkr per våning
B29: Kostnad för UV | C29: KUV | D29: =40 -> 40 | E29: =_xll.RiskUniform(35,45) ->  | F29: tkr/trappa | G29: Kostnaden för en utrymningsvåning förutsätts vara kostnaden för två brandklassade dörrar i klass EI60-S200C och övriga installationer. Dessa uppskattas uppgå till cirka 20 tkr per trappa och utrymningsvåning. | H29: Antar en utrymningsvåning per 11:e meter som för vanliga räddningshissar
B30: Schaktkostnad per kbm | C30: Kschakt | D30: =11.4 -> 11.4 | E30: =_xll.RiskUniform(10,12.8) ->  | F30: tkr/kbm | G30: Kostnaden uppskattas till cirka 10-12,8 tkr/kbm enligt entreprenadkostnad för station Sofia
B31: Arean på trappschaktet | C31: ATrappschakt | D31: 42 | E31: 42 | F31: kvm
B33: Utvariabler | C33: Beteckning | D33: Storlek | E33: Storlek | F33: Enhet | G33: Kommentar
B34: Utrymningsvariabler
B35: Total utrymningstid | C35: tutr | D35: =(D19+D21)/60 -> 24.10208528 | E35: =_xll.RiskOutput("t_utr")+(E19+E21)/60 ->  | F35: min | G35: Tiden till att sista person når det fria/utrymningsvåning. I beräkningarna förenklas det att någon av de sista personerna utrymmer hela vägen upp (och viker alltså inte av till en utrymningsvåning). Gånghastigheten från de långsammaste (som troligtvis nyttjar utrymningsvåningen) avgör hastigheten i trappan. Gånghastigheten höjs inte efter utrymningsvåningen vilket medför ett något mer konservativt resultat.
B36: Antal personer i utrymningsplatser | C36: PersUP | D36: =D24*D7 -> 228 | E36: =_xll.RiskOutput("Pers_UP")+E24*E7 ->  | F36: pers
B37: Antal personer i utrymningsvåning | C37: PersUV | D37: =D25*D7*D14 -> 380.1 | E37: =_xll.RiskOutput("Pers_UV")+E25*E7*E14 ->  | F37: pers
B38: Antal personer som inväntar räddningstjänsten | C38: PersRTJ | D38: =SUM(D36:D37) -> 608.1 | E38: =_xll.RiskOutput("Pers_RTJ")+SUM(E36:E37) ->  | F38: pers | G38: Befinner sig på utrymningsplats i höjd med hisshall eller längre upp vid utrymningsvåning.
B40: Kostnadsvariabler
B41: Total kostnad för trappor | C41: KTtot | D41: =(D11*D28+D13*D30*D31*D6)/1000 -> 49.54666667 | E41: =_xll.RiskOutput("K_Ttot")+(E11*E28+E13*E30*E31*E6)/1000 ->  | F41: mkr | G41: Beroende på antal trappor samt antal trapphus och storleken på trappschaktet
B42: Total kostnad för utrymningsvåningar | C42: KUVtot | D42: =D29*D11*ROUND(D6/11,0)/1000 -> 0.72 | E42: =_xll.RiskOutput("K_UVtot")+E29*E11*ROUND(E6/11,0)/1000 ->  | F42: mkr | G42: Behöver ej schaktas ut separat utan ingår i trapp/hisschakt i stil med station Sofia. Kostnaden utgörs av brandklassade dörrar med dörrstängare
B43: Total kostnad | C43: Ktot | D43: =SUM(D41:D42) -> 50.26666667 | E43: =_xll.RiskOutput("K_tot")+SUM(E41:E42) ->  | F43: mkr | G43: Summan av kostnader på hissar, trappor, utrymningsplatser och utrymningsvåningar

Sheet Fall 3 - Fler byter till trappa
E1: Fältförklaring
E2: Indata:
B4: Variabler | C4: Beteckning | D4: Väntevärde | E4: Fördelning | F4: Enhet | G4: Förklaring | H4: Kommentar
B5: Förutsättningar
B6: Djup på hisshallen | C6: Z | D6: =100 -> 100 | E6: 100 | F6: m | G6: Höjdskillnaden mellan hisshallen och marknivå
B7: Antal personer i hisshallen | C7: Perstot | D7: =2400 -> 2400 | E7: 2400 | F7: pers | G7: Dimensionerande personantal för utrymning
B8: Andel rörelsehindrade i hisshallen | C8: prörelsehinder | D8: 0.095 | E8: =_xll.RiskUniform(0.08,0.11) ->  | G8: Andelen rörelsehindrade som förväntas vistas i hisshallen. Med rörelsehindrad menas personer som inte kan eller har mycket svårt att gå i trappor | H8: Om undermarksanläggningen till exempel ligger nära ett sjukhus behöver andelen rörelsehindrade ökas
B10: Hissutrymning
B11: Antal hissar | C11: nH | D11: 8 | E11: 8 | F11: hissar | G11: Antal tillgängliga utrymningshissar
B12: Hisskapacitet | C12: KapH | D12: 32 | E12: 32 | F12: pers | G12: Hissarnas maximala personkapacitet
B13: Hisshastighet | C13: vH | D13: 4 | E13: 4 | F13: m/s | G13: Hissens vertikala medelhastighet vid en utrymning
B14: Nyttjandegrad av hissar | C14: ηH | D14: 0.8 | E14: =_xll.RiskTriang(0.7,0.8,0.9) ->  | G14: Andelen av hisskapaciteten som nyttjas vid en utrymning. Beror till exempel på antal rullstolar samt hur mycket plats folk tar upp. | H14: Om undermarksanläggningen till exempel ligger nära en flygplats förväntas en högre andel ha med sig baggage och då bör nyttjandegraden sänkas
B15: Andel som först väljer hiss | C15: pväljer | D15: 0.925 | E15: =_xll.RiskUniform(0.89,0.96) ->  | G15: Andel personer som kan inledningsvis tänka sig använda hiss som utrymningsväg
B16: Andel som byter till trappa pga social påverkan | C16: pbyter | D16: 0.9 | E16: =_xll.RiskUniform(0.85,0.95) ->  | G16: Andelen personer som förväntas byta från hiss till trappa på grund av social påverkan, trängsel och väntetid.
B17: Hissdörr öppningstid | C17: tHdö | D17: =1.2 -> 1.2 | E17: =1.2 -> 1.2 | F17: s | G17: Tiden det tar för hissdörrarna att öppnas.
B18: Hissdörr stängningstid | C18: tHds | D18: 3 | E18: 3 | F18: s | G18: Tiden det tar för hissdörrarna att stängas.
B19: Förväntat antal personer i hiss | C19: PersH | D19: =D12*D14 -> 25.6 | E19: =_xll.RiskOutput("Pers_H")+E12*E14 ->  | F19: pers | G19: Beroende på hisskapaciteten samt nyttjandegraden
B20: Tid för hissfyllning per person | C20: tfyll | D20: =1.13 -> 1.13 | E20: =_xll.RiskOutput("t_fyll")+_xll.RiskTriang(0.9,1,1.5,) ->  | F20: s/person | G20: Tiden det tar att fylla en hiss beroende på det förväntade antalet personer per hiss
B21: Tid för hisstömning per person | C21: ttöm | D21: =0.91 -> 0.91 | E21: =_xll.RiskOutput("t_töm")+_xll.RiskTriang(0.72,0.8,1.2) ->  | F21: s/person | G21: Tiden det tar att tömma en hiss beroende på det förväntade antalet personer per hiss
B22: Restid för hiss | C22: tH | D22: =((D17+D18)*2+(D6/D13)*2+D20*D19+D21*D19) -> 110.624 | E22: =_xll.RiskOutput("t_H")+((E17+E18)*2+(E6/E13)*2+E20*E19+E21*E19) ->  | F22: s | G22: Tiden det tar för en hiss att fyllas, åka från ena stannplanet till det andra, tömmas, och sedan åka tillbaka
B23: Andel som kan tänka sig ta hiss | C23: pH | D23: =IF(D30=0,1-D8*(1-D15),D15*(1-D8)*(1-D16)+D15*D8) -> 0.1715875 | E23: =_xll.RiskOutput("p_H")+IF(E30=0,1-E8*(1-E15),E15*(1-E8)*(1-E16)+E15*E8) ->  | G23: Andelen som tar hiss är summan av de som tar hiss och inte byter på grund av social påverkan
B24: Flöde från hissar | C24: QH | D24: =D11*D19/D22 -> 1.85131617 | E24: =_xll.RiskOutput("Q_H")+E11*E19/E22 ->  | F24: pers/s | G24: Det totala uppskattade personflödet via hiss
B25: Maximalt accepterad kötid | C25: thisskö | D25: 30 | E25: 30 | F25: min | G25: Maximalt accepterad kötid till hissarna på ... minuter
B26: Antal personer som kan ta hissen inom den maximalt accepterade kötiden | C26: Pershisskö | D26: =MIN(D7*D23,D24*D25*60) -> 411.81 | E26: =MIN(E7*E23,E24*E25*60) ->  | F26: pers | G26: Antal personer som hinner åka hissen innan tiden överstiger den maximalt accepterade kötiden
B27: Antal personer som byter från hiss till trappa på grund av lång kötid | C27: Persbyter | D27: =IF(D7*D23-D24*D25*60<0,0,D7*D23-D24*D25*60) -> 0 | E27: =IF(E7*E23-E24*E25*60<0,0,E7*E23-E24*E25*60) ->  | F27: pers | G27: Antal personer som byter till trappa på grund av att tiden överstiger den maximalt accepterade kötiden
B29: Trapputrymning
B30: Antal trappor | C30: nT | D30: 2 | E30: 2 | F30: trappor | G30: Antalet utrymningstrappor från hisshallen till markplan
B31: Trappbredd | C31: breddT | D31: =2 -> 2 | E31: 2 | F31: m | G31: Total bredd i varje trappa | H31: Om trappbredden är mindre än 1,5 meter kan det vara svårt att gå förbi framförvarande långsammare individer.
B32: Antal trapphus | C32: ntrapphus | D32: =ROUND(D30/2,0) -> 1 | E32: =ROUND(E30/2,0) -> 1 | F32: trapphus | G32: I varje trapphus förutsätts två trappor gå omlott
B33: Andel som väljer trappa | C33: pT | D33: =1-D23-D43 -> 0.8212875 | E33: =_xll.RiskOutput("p_T")+(1-E23-E43) ->  | G33: Andelen som väljer trappan är de personer som ej väljer hissen eller utrymningsplats
B34: Persontäthet i trappan | C34: D | D34: =1.75 -> 1.75 | E34: =_xll.RiskUniform(1.5,2) ->  | F34: pers/m2 | G34: Den uppskattade persontätheten längre upp i trappan | H34: Om en persontäthet över 3 pers/kvm förväntas i trappan uppstår köbildning sannolikt in till trappan. Beräkna då personflödet baserat på den maximala förväntade persontätheten in till trappan
B35: Gånghastighet i trappor | C35: vgång | D35: 0.45 | E35: =IF(E34<2.2,_xll.RiskUniform(0.4,0.5),0.7-0.144*(E34-0.5)) ->  | F35: m/s | G35: Gånghastigheten i trappan för de långsammaste individerna som förväntas nå marknivå
B36: Specifikt flöde pga persontäthet | C36: QS | D36: =D34*D35 -> 0.7875 | E36: =_xll.RiskOutput("Q_S")+E34*E35 ->  | F36: pers/(ms) | G36: Det specifika personflödet anger personflödet per meter effektiv trappbredd och sekund
B37: Flöde i trapphuset | C37: QT | D37: =D36*(D31-2*0.15)*D30 -> 2.6775 | E37: =_xll.RiskOutput("Q_T")+E36*(E31-2*0.15)*E30 ->  | F37: pers/s | G37: Det totala personflödet i trapporna per sekund. Uppskattas med det specifika personflödet och den effektiva trappbredden som beräknas genom att ta bort gränsskiktet vid trappväggarna som ej nyttjas (oftast 150 mm)
B38: Kötid för trappa | C38: tTrappkö | D38: =IFERROR((D7*D33+D27)/D37,0) -> 736.1680672 | E38: =_xll.RiskOutput("t_Trappkö")+IFERROR((E7*E33+E27)/E37,0) ->  | F38: s | G38: Tiden som personen längst bak i kön i trappan behöver vänta
B39: Stighastigheten i trappan | C39: vstig | D39: =D35*0.35 -> 0.1575 | E39: =E35*_xll.RiskUniform(0.3,0.4) ->  | F39: m/s | G39: Stighastigheten i trappan för de långsammaste individerna
B40: Total tid att gå upp från hisshall till markplan | C40: tT | D40: =IF(D30=0,0,D6/D39) -> 634.9206349 | E40: =_xll.RiskOutput("t_T")+IF(E30=0,0,E6/E39) ->  | F40: s | G40: Djupet på anläggningen samt stighastigheten i trappan avgör tiden för att bestiga trapporna från hisshallen till marknivå
B42: Invänta räddningstjänst
B43: Andel personer som nyttjar utrymningsplats | C43: pUP | D43: =IF(D11=0,D8,(1-D15)*D8) -> 0.007125 | E43: =_xll.RiskOutput("p_UP")+IF(E11=0,E8,(1-E15)*E8) ->  | G43: Andelen personer som ej kan gå i trappor och som inte heller är villiga att använda hiss som utrymningsväg | H43: Rörelsehindrade antas vara mer villiga att nyttja hiss än andra, således förutsätts deras val av utrymningsväg inte ändras på grund av social påverkan
B44: Andel i trappan som väljer utrymningsvåning | C44: pUV | D44: =IF(D6<40,0,0.125) -> 0.125 | E44: =IF(E6<40,0,_xll.RiskUniform(0.1,0.15)) ->  | G44: Personer som ej klarar att utrymma hela vägen till det fria via trapporna. | H44: Enligt källor klarar de flesta, unga och friska, att gå 100 höjdmeter. Vid mindre än 40 meters djup antas alla klara trappbestigning.
B46: Kostnader
B47: Kostnad per hiss | C47: KH | D47: =1.8*10^3*4 -> 7200 | E47: =_xll.RiskUniform(1.8*10^3*3,1.8*10^3*5) ->  | F47: tkr | G47: Kostnaden för en vanlig hiss uppskattas till cirka 1,5-1,8 mkr. Förutsätter att en utrymningshiss är 3-5 ggr så dyr
B48: Kostnad för trappa | C48: KT | D48: =25*D6/3 -> 833.3333333 | E48: =_xll.RiskUniform(20,30)*E6/3 ->  | F48: tkr | G48: Kostnaden för en trappa uppskattas till cirka 25 tkr per våning. En våning uppskattas vara cirka 3 meter hög.
B49: Kostnad för UV | C49: KUV | D49: =40 -> 40 | E49: =_xll.RiskUniform(35,45) ->  | F49: tkr/trappa | G49: Kostnaden för en utrymningsvåning förutsätts vara kostnaden för två brandklassade dörrar i klass EI60-S200C och övriga installationer. Dessa uppskattas uppgå till cirka 20 tkr per trappa och utrymningsvåning. | H49: Antar en utrymningsvåning per 11:e meter som för vanliga räddningshissar
B50: Schaktkostnad per kbm | C50: Kschakt | D50: =11.4 -> 11.4 | E50: =_xll.RiskUniform(10,12.8) ->  | F50: tkr/kbm | G50: Kostnaden uppskattas till cirka 10-12,8 tkr/kbm enligt entreprenadkostnad för station Sofia
B51: Arean på hisschaktet | C51: AHisschakt | D51: 15 | E51: 15 | F51: kvm
B52: Arean på trappschaktet | C52: ATrappschakt | D52: 42 | E52: 42 | F52: kvm
B54: Utvariabler | C54: Beteckning | D54: Väntevärde | E54: Fördelning | F54: Enhet | G54: Kommentar
B55: Utrymning
B56: Total utrymningstid, hiss | C56: tHutr | D56: =IF(D30=0,SUM(D26:D27)/(D24*60),(D26)/(D24*60)) -> 3.707362422 | E56: =_xll.RiskOutput("t_Hutr")+IF(E30=0,SUM(E26:E27)/(E24*60),(E26)/(E24*60)) ->  | F56: min | G56: Totala antalet personer som nyttjar hissarna delat med personflödet via hissarna
B57: Total utrymningstid, trappa | C57: tTutr | D57: =(D38+D40)/60 -> 22.85147837 | E57: =_xll.RiskOutput("t_Tutr")+(E38+E40)/60 ->  | F57: min | G57: Tiden till att sista person når det fria/utrymningsvåning. I beräkningarna förenklas det att någon av de sista personerna utrymmer hela vägen upp (och viker alltså inte av till en utrymningsvåning). Gånghastigheten från de långsammaste (som troligtvis nyttjar utrymningsvåningen) avgör hastigheten i trappan. Gånghastigheten höjs inte efter utrymningsvåningen vilket medför ett något mer konservativt resultat.
B58: Total utrymningstid | C58: tutr | D58: =IFERROR(MAX(D56:D57),D57) -> 22.85147837 | E58: =_xll.RiskOutput("t_utr")+IFERROR(MAX(E56:E57),E57) ->  | F58: min | G58: Det största värdet på utrymningstid från hiss eller trappa
B59: Antal personer i utrymningsplatser | C59: PersUP | D59: =D43*D7 -> 17.1 | E59: =_xll.RiskOutput("Pers_UP")+E43*E7 ->  | F59: pers
B60: Antal personer i utrymningsvåning | C60: PersUV | D60: =IF(D30=0,0,(D7*D33+D27)*D44) -> 246.38625 | E60: =_xll.RiskOutput("Pers_UV")+IF(E30=0,0,(E7*E33+E27)*E44) ->  | F60: pers
B61: Antal personer som inväntar räddningstjänsten | C61: PersRTJ | D61: =SUM(D59:D60) -> 263.48625 | E61: =_xll.RiskOutput("Pers_RTJ")+SUM(E59:E60) ->  | F61: pers | G61: Befinner sig på utrymningsplats i höjd med hisshall eller längre upp vid utrymningsvåning.
B63: Kostnad
B64: Total kostnad för hissar | C64: KHtot | D64: =D11*(D47+D51*D50*D6)/1000 -> 194.4 | E64: =_xll.RiskOutput("K_Htot")+E11*(E47+E51*E50*E6)/1000 ->  | F64: mkr | G64: Beroende på antal hissar samt storleken på hisschakten
B65: Total kostnad för trappor | C65: KTtot | D65: =(D30*D48+D32*D50*D52*D6)/1000 -> 49.54666667 | E65: =_xll.RiskOutput("K_Ttot")+(E30*E48+E32*E50*E52*E6)/1000 ->  | F65: mkr | G65: Beroende på antal trappor samt antal trapphus och storleken på trappschaktet
B66: Total kostnad för utrymningsvåningar | C66: KUVtot | D66: =D49*D30*ROUND(E6/11,0)/1000 -> 0.72 | E66: =E49*E30*ROUND(E6/11,0)/1000 ->  | F66: mkr | G66: Behöver ej schaktas ut separat utan ingår i trapp/hisschakt i stil med station Sofia. Kostnaden utgörs av brandklassade dörrar med dörrstängare
B67: Total kostnad | C67: Ktot | D67: =SUM(D64:D66) -> 244.6666667 | E67: =_xll.RiskOutput("K_tot")+SUM(E64:E66) ->  | F67: mkr | G67: Summan av kostnader på hissar, trappor, utrymningsplatser och utrymningsvåningar
